fUSD/lending_fUSD_20240804
["ID","MTS","AMOUNT","RATE_DAILY","PERIOD"]
[334092508,1722761433301,-500.0,0.00023883,2]
[334092509,1722761433309,-406.25443855,0.00023883,2]
[334092510,1722761433321,-93.74556145,0.00023883,2]
[334092511,1722761433330,-500.0,0.00023883,2]
[334092512,1722761433339,-500.0,0.00023883,2]
[334092513,1722761433348,-500.0,0.00023883,2]
[334092514,1722761433357,-500.0,0.00023883,2]
[334092515,1722761433366,-500.0,0.00023883,2]
[334092516,1722761433375,-500.0,0.00023883,2]
[334092517,1722761433384,-500.0,0.00023883,2]
[334092518,1722761433393,-500.0,0.00023883,2]
[334092519,1722761433402,-332.83583933,0.00023883,2]
[334092520,1722761433415,-167.16416067,0.00023883,2]
[334092521,1722761433424,-500.0,0.00023883,2]
[334092522,1722761433433,-500.0,0.00023883,2]
[334092523,1722761433442,-500.0,0.00023883,2]
[334092524,1722761433452,-500.0,0.00023883,2]
[334092525,1722761433461,-500.0,0.00023883,2]
[334092526,1722761433470,-500.0,0.00023883,2]
[334092527,1722761433479,-500.0,0.00023883,2]
[334092528,1722761433488,-500.0,0.00023883,2]
[334092529,1722761433497,-500.0,0.00023883,2]
[334092530,1722761433508,-500.0,0.00023883,2]
[334092531,1722761433517,-500.0,0.00023883,2]
[334092532,1722761433526,-459.99655696,0.00023883,2]
[334092537,1722761437929,-535.57210001,0.00019319,2]
[334092538,1722761437940,-369.83081423,0.00019451,2]
[334092539,1722761437988,-165.7312009,0.00019451,2]
[334092540,1722761437998,-530.67276147,0.00020999,2]
[334092541,1722761438010,-40.00344304,0.00023883,2]
[334092542,1722761438019,-500.0,0.00023883,2]
[334092543,1722761438030,-500.0,0.00023883,2]
[334092544,1722761438039,-500.0,0.00023883,2]
[334092545,1722761438050,-500.0,0.00023883,2]
[334092547,1722761438060,-500.0,0.00023883,2]
[334092549,1722761438070,-500.0,0.00023883,2]
[334092551,1722761438080,-500.0,0.00023883,2]
[334092553,1722761438090,-500.0,0.00023883,2]
[334092555,1722761438100,-500.0,0.00023883,2]
[334092557,1722761438114,-500.0,0.00023883,2]
[334092558,1722761438124,-500.0,0.00023883,2]
[334092559,1722761438133,-500.0,0.00023883,2]
[334092560,1722761438143,-500.0,0.00023883,2]
[334092561,1722761438152,-500.0,0.00023883,2]
[334092562,1722761438161,-500.0,0.00023883,2]
[334092565,1722761438171,-500.0,0.00023883,2]
[334092568,1722761438180,-500.0,0.00023883,2]
[334092571,1722761438190,-500.0,0.00023883,2]
[334092574,1722761438199,-500.0,0.00023883,2]
[334092577,1722761438209,-500.0,0.00023883,2]
[334092579,1722761438218,-500.0,0.00023883,2]
[334092581,1722761438227,-500.0,0.00023883,2]
[334092582,1722761438237,-500.0,0.00023883,2]
[334092583,1722761438246,-500.0,0.00023883,2]
[334092584,1722761438256,-500.0,0.00023883,2]
[334092585,1722761438267,-500.0,0.00023883,2]
[334092586,1722761438277,-500.0,0.00023883,2]
[334092587,1722761438286,-500.0,0.00023883,2]
[334092588,1722761438296,-500.0,0.00023883,2]
[334092589,1722761438305,-500.0,0.00023883,2]
[334092590,1722761438323,-500.0,0.00023883,2]
[334092591,1722761438334,-500.0,0.00023883,2]
[334092592,1722761438344,-500.0,0.00023883,2]
[334092593,1722761438355,-500.0,0.00023883,2]
[334092594,1722761438365,-500.0,0.00023883,2]
[334092596,1722761438375,-500.0,0.00023883,2]
[334092598,1722761438385,-500.0,0.00023883,2]
[334092600,1722761438395,-500.0,0.00023883,2]
[334092602,1722761438405,-500.0,0.00023883,2]
[334092604,1722761438415,-500.0,0.00023883,2]
[334092606,1722761438425,-500.0,0.00023883,2]
[334092608,1722761438435,-500.0,0.00023883,2]
[334092609,1722761438445,-500.0,0.00023883,2]
[334092611,1722761438455,-500.0,0.00023883,2]
[334092613,1722761438464,-500.0,0.00023883,2]
[334092615,1722761438474,-500.0,0.00023883,2]
[334092617,1722761438484,-500.0,0.00023883,2]
[334092619,1722761438493,-500.0,0.00023883,2]
[334092621,1722761438503,-500.0,0.00023883,2]
[334092623,1722761438514,-500.0,0.00023883,2]
[334092625,1722761438524,-500.0,0.00023883,2]
[334092627,1722761438534,-500.0,0.00023883,2]
[334092629,1722761438543,-500.0,0.00023883,2]
[334092631,1722761438553,-500.0,0.00023883,2]
[334092633,1722761438563,-500.0,0.00023883,2]
[334092634,1722761438574,-500.0,0.00023883,2]
[334092637,1722761438584,-500.0,0.00023883,2]
[334092638,1722761438593,-500.0,0.00023883,2]
[334092640,1722761438603,-500.0,0.00023883,2]
[334092642,1722761438613,-500.0,0.00023883,2]
[334092644,1722761438622,-500.0,0.00023883,2]
[334092646,1722761438632,-500.0,0.00023883,2]
[334092648,1722761438642,-500.0,0.00023883,2]
[334092650,1722761438652,-500.0,0.00023883,2]
[334092652,1722761438662,-500.0,0.00023883,2]
[334092654,1722761438672,-500.0,0.00023883,2]
[334092656,1722761438681,-500.0,0.00023883,2]
[334092658,1722761438691,-500.0,0.00023883,2]
[334092660,1722761438705,-500.0,0.00023883,2]
[334092662,1722761438715,-500.0,0.00023883,2]
[334092664,1722761438725,-500.0,0.00023883,2]
[334092666,1722761438735,-500.0,0.00023883,2]
[334092668,1722761438746,-500.0,0.00023883,2]
[334092670,1722761438756,-500.0,0.00023883,2]
[334092673,1722761438772,-500.0,0.00023883,2]
[334092675,1722761438782,-500.0,0.00023883,2]
[334092677,1722761438791,-500.0,0.00023883,2]
[334092679,1722761438800,-500.0,0.00023883,2]
[334092681,1722761438810,-500.0,0.00023883,2]
[334092683,1722761438820,-500.0,0.00023883,2]
[334092685,1722761438831,-500.0,0.00023883,2]
[334092687,1722761438841,-500.0,0.00023883,2]
[334092689,1722761438851,-500.0,0.00023883,2]
[334092691,1722761438863,-500.0,0.00023883,2]
[334092693,1722761438873,-500.0,0.00023883,2]
[334092695,1722761438883,-500.0,0.00023883,2]
[334092697,1722761438892,-500.0,0.00023883,2]
[334092699,1722761438902,-500.0,0.00023883,2]
[334092701,1722761438912,-500.0,0.00023883,2]
[334092703,1722761438922,-500.0,0.00023883,2]
[334092705,1722761438931,-500.0,0.00023883,2]
[334092707,1722761438941,-500.0,0.00023883,2]
[334092709,1722761438951,-500.0,0.00023883,2]
[334092711,1722761438960,-500.0,0.00023883,2]
[334092712,1722761438970,-500.0,0.00023883,2]
[334092714,1722761438980,-500.0,0.00023883,2]
[334092716,1722761438991,-500.0,0.00023883,2]
[334092718,1722761439001,-500.0,0.00023883,2]
[334092721,1722761439011,-500.0,0.00023883,2]
[334092723,1722761439020,-500.0,0.00023883,2]
[334092725,1722761439030,-500.0,0.00023883,2]
[334092727,1722761439039,-500.0,0.00023883,2]
[334092729,1722761439048,-500.0,0.00023883,2]
[334092731,1722761439058,-500.0,0.00023883,2]
[334092733,1722761439068,-500.0,0.00023883,2]
[334092735,1722761439078,-500.0,0.00023883,2]
[334092737,1722761439088,-500.0,0.00023883,2]
[334092739,1722761439097,-500.0,0.00023883,2]
[334092741,1722761439107,-500.0,0.00023883,2]
[334092742,1722761439116,-500.0,0.00023883,2]
[334092744,1722761439126,-500.0,0.00023883,2]
[334092746,1722761439136,-500.0,0.00023883,2]
[334092748,1722761439145,-500.0,0.00023883,2]
[334092750,1722761439155,-500.0,0.00023883,2]
[334092752,1722761439164,-500.0,0.00023883,2]
[334092754,1722761439175,-500.0,0.00023883,2]
[334092756,1722761439185,-500.0,0.00023883,2]
[334092758,1722761439195,-500.0,0.00023883,2]
[334092760,1722761439204,-500.0,0.00023883,2]
[334092762,1722761439214,-500.0,0.00023883,2]
[334092764,1722761439224,-500.0,0.00023883,2]
[334092766,1722761439233,-500.0,0.00023883,2]
[334092768,1722761439243,-500.0,0.00023883,2]
[334092770,1722761439253,-500.0,0.00023883,2]
[334092772,1722761439263,-500.0,0.00023883,2]
[334092774,1722761439273,-500.0,0.00023883,2]
[334092776,1722761439283,-500.0,0.00023883,2]
[334092778,1722761439292,-500.0,0.00023883,2]
[334092780,1722761439302,-500.0,0.00023883,2]
[334092782,1722761439314,-500.0,0.00023883,2]
[334092784,1722761439325,-500.0,0.00023883,2]
[334092786,1722761439335,-500.0,0.00023883,2]
[334092788,1722761439345,-500.0,0.00023883,2]
[334092790,1722761439355,-500.0,0.00023883,2]
[334092792,1722761439364,-500.0,0.00023883,2]
[334092794,1722761439375,-500.0,0.00023883,2]
[334092796,1722761439387,-500.0,0.00023883,2]
[334092798,1722761439397,-500.0,0.00023883,2]
[334092800,1722761439407,-500.0,0.00023883,2]
[334092802,1722761439417,-500.0,0.00023883,2]
[334092804,1722761439427,-500.0,0.00023883,2]
[334092806,1722761439437,-500.0,0.00023883,2]
[334092808,1722761439446,-500.0,0.00023883,2]
[334092810,1722761439456,-500.0,0.00023883,2]
[334092812,1722761439467,-500.0,0.00023883,2]
[334092814,1722761439476,-500.0,0.00023883,2]
[334092816,1722761439486,-500.0,0.00023883,2]
[334092818,1722761439496,-500.0,0.00023883,2]
[334092820,1722761439506,-500.0,0.00023883,2]
[334092822,1722761439518,-500.0,0.00023883,2]
[334092824,1722761439528,-500.0,0.00023883,2]
[334092826,1722761439538,-500.0,0.00023883,2]
[334092828,1722761439548,-500.0,0.00023883,2]
[334092830,1722761439558,-500.0,0.00023883,2]
[334092832,1722761439568,-500.0,0.00023883,2]
[334092834,1722761439578,-500.0,0.00023883,2]
[334092836,1722761439588,-500.0,0.00023883,2]
[334092838,1722761439598,-500.0,0.00023883,2]
[334092840,1722761439607,-500.0,0.00023883,2]
[334092842,1722761439617,-500.0,0.00023883,2]
[334092844,1722761439627,-500.0,0.00023883,2]
[334092846,1722761439637,-500.0,0.00023883,2]
[334092848,1722761439647,-500.0,0.00023883,2]
[334092850,1722761439657,-500.0,0.00023883,2]
[334092852,1722761439667,-500.0,0.00023883,2]
[334092854,1722761439678,-500.0,0.00023883,2]
[334092856,1722761439688,-500.0,0.00023883,2]
[334092858,1722761439702,-500.0,0.00023883,2]
[334092860,1722761439711,-500.0,0.00023883,2]
[334092862,1722761439721,-500.0,0.00023883,2]
[334092864,1722761439731,-500.0,0.00023883,2]
[334092866,1722761439742,-500.0,0.00023883,2]
[334092868,1722761439752,-500.0,0.00023883,2]
[334092870,1722761439762,-500.0,0.00023883,2]
[334092872,1722761439773,-500.0,0.00023883,2]
[334092874,1722761439783,-500.0,0.00023883,2]
[334092876,1722761439793,-500.0,0.00023883,2]
[334092878,1722761439802,-500.0,0.00023883,2]
[334092880,1722761439811,-500.0,0.00023883,2]
[334092883,1722761439821,-500.0,0.00023883,2]
[334092886,1722761439831,-500.0,0.00023883,2]
[334092888,1722761439841,-500.0,0.00023883,2]
[334092890,1722761439850,-500.0,0.00023883,2]
[334092892,1722761439860,-500.0,0.00023883,2]
[334092894,1722761439870,-500.0,0.00023883,2]
[334092896,1722761439879,-500.0,0.00023883,2]
[334092898,1722761439890,-33108.1238901,0.0002389,3]
[334092900,1722761439899,-217.0,0.0002389,2]
[334092902,1722761439909,-1000.0,0.000239,2]
[334092904,1722761439919,-256.0,0.000239,2]
[334092906,1722761439929,-4206.46870448,0.000239,9]
[334092909,1722761439950,-6923.97634871,0.000239,9]
[334092911,1722761439962,-1541.68026684,0.000239,9]
[334092927,1722761440109,-309.05361967,0.00019387,2]
[334092929,1722761440119,-155.0,0.00019398,2]
[334092930,1722761440129,-2686.90251909,0.000239,9]
[334092934,1722761440152,-15000.0,0.000239,9]
[334092949,1722761440303,-605.43516928,0.000239,9]
[334092951,1722761440315,-382.6012635,0.000239,9]
[334092953,1722761440327,-293.19342432,0.000239,9]
[334093266,1722761444178,-4554.15623359,0.000239,9]
[334093267,1722761444190,-12863.4,0.000239,9]
[334093271,1722761447526,-155.0,0.00019387,2]
[334093272,1722761447536,-1109.7968584,0.00023405,2]
[334093273,1722761447546,-362.81150249,0.000239,9]
[334093274,1722761447686,-29120.42888649,0.000239,9]
[334093275,1722761447706,-97034.43642366,0.000239,9]
[334093276,1722761447719,-208.40608416,0.000239,2]
[334093277,1722761447728,-4262.67974833,0.00023907,2]
[334093278,1722761447738,-153.46485503,0.0002394,2]
[334093279,1722761447748,-6427.41287682,0.0002397,3]
[334093280,1722761447779,-1458.61722856,0.0002397,3]
[334093281,1722761447794,-8076.5336058,0.0002397,3]
[334093282,1722761447805,-6109.51888222,0.0002397,3]
[334093283,1722761447815,-155.35,0.0002397,2]
[334093284,1722761447825,-204.49680333,0.00023978,2]
[334093285,1722761447835,-10936.23957445,0.0002398,3]
[334093310,1722761501703,183.46,0.00025853,120]
[334093313,1722761803888,-550.0,0.00011,2]
[334093314,1722761819871,1049.98025387,0.00011,2]
[334093315,1722761821692,181.83848694,0.00011,2]
[334093316,1722761825570,449.25291182,0.00011,2]
[334093317,1722761827001,412.86502835,0.00011,2]
[334093318,1722761828352,155.0,0.00011,2]
[334093319,1722761828825,158.8537484,0.00011,2]
[334093320,1722761829038,170.38934769,0.00011,2]
[334093321,1722761829752,18829.20746285,0.00011,2]
[334093322,1722761833579,376.81054898,0.00011,2]
[334093323,1722761844041,170.38934769,0.00011,2]
[334093324,1722762041924,181.16,0.00026221,120]
[334093339,1722762529033,177.29,0.00024837,120]
[334093340,1722762631965,-335.08950845,0.00013,2]
[334093341,1722762631981,-264.91049155,0.00013,2]
[334093342,1722762631991,-11.60950845,0.00013973,2]
[334093343,1722762632002,-303.56049155,0.00013973,2]
[334093344,1722762632011,-211.54,0.00013973,2]
[334093345,1722762632021,-198.0,0.00014999,2]
[334093346,1722762632030,-271.59612727,0.00015,7]
[334093347,1722762632047,-472.14322502,0.00015,7]
[334093348,1722762632059,-5367.40846028,0.00015,7]
[334093349,1722762632070,-389.84087267,0.00015,7]
[334093350,1722762632081,-412.77835827,0.00015,7]
[334093351,1722762632092,-299.6900001,0.00015,7]
[334093352,1722762632106,-3808.90217198,0.00015,7]
[334093353,1722762632123,-3422.04110642,0.00015,7]
[334093354,1722762632143,-4866.61354802,0.00015,7]
[334093355,1722762632155,-432.000004,0.00015,7]
[334093356,1722762632167,-290.16336359,0.00015,7]
[334093357,1722762632176,-165.69107641,0.00015,2]
[334093358,1722762632188,-484.30892359,0.00015,2]
[334093359,1722762632198,-700.0,0.00017,2]
[334093360,1722762632207,-750.0,0.00019,2]
[334093361,1722762632217,-546.38573207,0.00019045,2]
[334093362,1722762632227,-425.93089129,0.00019319,2]
[334093363,1722762632238,-110.1147336,0.00019319,2]
[334093364,1722762632248,-158.06,0.00019375,2]
[334093365,1722762632257,-347.66898349,0.00019451,2]
[334093366,1722762632267,-370.30384095,0.00020109,2]
[334093367,1722762632276,-257.22629561,0.00020109,2]
[334093368,1722762632285,-315.17,0.00020447,2]
[334093369,1722762632295,-211.54,0.00020447,2]
[334093370,1722762632304,-500.0,0.00020666,2]
[334093371,1722762632317,-500.0,0.00020746,2]
[334093372,1722762632326,-501.55628638,0.00020769,2]
[334093373,1722762632336,-1762.83385166,0.00020899,2]
[334093374,1722762632345,-181.16,0.00020977,2]
[334093375,1722762632357,-530.67276147,0.00020999,2]
[334093376,1722762632366,-414.51752762,0.00020999,2]
[334093377,1722762632376,-432.95732402,0.00021,2]
[334093378,1722762632385,-800.0,0.00021,2]
[334093380,1722762632395,-200.0,0.00021237,2]
[334093382,1722762632406,-177.29,0.00021288,2]
[334093384,1722762632415,-1520.83698159,0.00021414,2]
[334093387,1722762632427,-1230.16301841,0.00021414,2]
[334093389,1722762632436,-500.0,0.0002156,2]
[334093391,1722762632446,-500.0,0.00021599,2]
[334093393,1722762632455,-500.0,0.00021839,2]
[334093395,1722762632465,-171.7,0.00021894,2]
[334093397,1722762632474,-150.0,0.00021918,2]
[334093398,1722762632483,-371.79,0.00021918,2]
[334093400,1722762632492,-500.0,0.0002209,2]
[334093402,1722762632502,-150.0,0.00022167,2]
[334093404,1722762632511,-500.0,0.00022223,2]
[334093406,1722762632521,-158.06,0.00022447,2]
[334093408,1722762632530,-150.0,0.00022495,2]
[334093410,1722762632539,-500.0,0.00022654,2]
[334093412,1722762632549,-167.0,0.00022782,2]
[334093414,1722762632558,-183.46,0.00022981,2]
[334093416,1722762632567,-1000.0,0.00023,23]
[334093418,1722762632577,-1000.0,0.0002303,2]
[334093420,1722762632586,-150.0,0.00023071,2]
[334093422,1722762632595,-171.7,0.00023098,2]
[334093424,1722762632606,-501.01995264,0.00023129,2]
[334093426,1722762632615,-500.0,0.00023322,2]
[334093428,1722762632625,-180.0,0.00023343,2]
[334093430,1722762632634,-500.0,0.00023357,2]
[334093432,1722762632643,-155.0,0.00023451,2]
[334093434,1722762632653,-155.0,0.00023451,2]
[334093436,1722762632662,-601.32609924,0.000235,2]
[334093438,1722762632674,-337.01913656,0.000235,2]
[334093440,1722762632685,-126.63010115,0.000235,2]
[334093442,1722762632694,-622.02184034,0.000235,2]
[334093445,1722762632713,-536.79127857,0.000235,2]
[334093447,1722762632722,-264.26280637,0.00023506,2]
[334093449,1722762632734,-496.97520111,0.00023506,2]
[334093451,1722762632745,-1500.0,0.00023562,2]
[334093453,1722762632755,-500.0,0.00023604,2]
[334093455,1722762632765,-150.0,0.00023648,2]
[334093456,1722762632774,-212.217,0.00023783,2]
[334093458,1722762632785,-544.35546093,0.00023801,6]
[334093461,1722762632797,-17111.62800063,0.00023801,6]
[334093463,1722762632808,-3255.09037,0.00023801,6]
[334093465,1722762632821,-3831.37609416,0.00023801,6]
[334093467,1722762632835,-1033.7,0.00023801,6]
[334093469,1722762632847,-711.72882134,0.00023801,6]
[334093472,1722762632873,-439.31847844,0.00023801,6]
[334093474,1722762632884,-3434.7094964,0.00023801,6]
[334093476,1722762638322,-2494.82382859,0.00013233,2]
[334093477,1722762638331,-573.72208194,0.00013333,2]
[334093478,1722762638341,-1467.40470181,0.00023801,6]
[334093482,1722762640585,-347.66898349,0.00019398,2]
[334093483,1722762640594,-296.3510107,0.00023801,6]
[334093484,1722762640606,-291.38,0.00023801,6]
[334093485,1722762640618,-861.50000005,0.00023801,6]
[334093486,1722762640629,-422.95610072,0.00023801,6]
[334093622,1722762646626,-162989.27530685,0.00023801,6]
[334093624,1722763077228,292.85,0.00026155,120]
[334093625,1722763431875,550.0,0.00011,2]
[334093626,1722763484556,240.74766473,0.00011,2]
[334093627,1722763488347,18829.20746285,0.00011,2]
[334093628,1722763497630,170.38934769,0.00011,2]
[334093629,1722763507786,140967.54872473,0.00011,2]
[334093670,1722763832282,-6537.09327551,0.000106,2]
[334093671,1722763832294,-300.0,0.00010899,2]
[334093672,1722763832306,-5467.38495427,0.000109,2]
[334093673,1722763832317,-187.56555422,0.000109,2]
[334093674,1722763832329,-196.42324482,0.000109,2]
[334093675,1722763832340,-158.32232621,0.000109,2]
[334093676,1722763832351,-170.81662991,0.000109,2]
[334093677,1722763832361,-158.58,0.0001099,2]
[334093678,1722763832373,-1851.59178396,0.00010997,2]
[334093679,1722763832384,-602.5841244,0.00010999,2]
[334093680,1722763832395,-2005.7530259,0.00011,2]
[334093681,1722763832408,-1474.47,0.00011,2]
[334093682,1722763832432,-963.265926,0.00011,2]
[334093683,1722763832446,-4555.22356862,0.00011,2]
[334093684,1722763832465,-4647.56500255,0.00011,2]
[334093685,1722763832478,-46444.16499745,0.00011,2]
[334093686,1722763832492,-9457.79447527,0.00011,2]
[334093687,1722763832511,-544.90077358,0.00011,2]
[334093688,1722763832535,-302.11780374,0.00011,2]
[334093689,1722763832549,-389.00967572,0.00011,2]
[334093690,1722763832563,-997.8724334,0.00011,2]
[334093691,1722763832576,-653.171494,0.00011,2]
[334093692,1722763832600,-16182.3,0.00011,2]
[334093693,1722763832613,-397.56791311,0.00011,2]
[334093694,1722763832692,-494.98527188,0.00011,2]
[334093695,1722763832706,-4687.88496515,0.00011,2]
[334093696,1722763832720,-30362.92421683,0.00011,2]
[334093697,1722763832735,-1074.32,0.00011,2]
[334093710,1722763838338,-6962.81,0.00011,2]
[334093771,1722763839390,-571.73407343,0.00011,2]
[334093773,1722763839402,-10441.17998013,0.00011,2]
[334093775,1722763839414,-139164.37534587,0.00011,2]
[334093777,1722763839426,-532.41670633,0.00011,2]
[334093779,1722763839437,-441.69836973,0.00011,2]
[334093782,1722763839451,-534413.9939805,0.00011,2]
[334093784,1722763839463,-310.01819,0.00011,2]
[334093786,1722763839475,-22971.87597403,0.00011,2]
[334093883,1722763840472,-71488.47131589,0.00011,2]
[334093901,1722763840636,-6690.12187582,0.00011,2]
[334093904,1722763840657,-808.68037006,0.00011,2]
[334093907,1722763840671,-429.92000001,0.00011,2]
[334093946,1722763843314,-1352.0,0.00011,2]
[334093947,1722763843327,-292.35005528,0.00011,2]
[334093948,1722763843401,-1160.02723563,0.00011,2]
[334093952,1722763845100,-5296.76582824,0.00011,2]
[334093953,1722763845117,-3985.21532942,0.00011,2]
[334093954,1722763845129,-572.08959861,0.00011,2]
[334093955,1722763845219,-9013.5259233,0.00011,2]
[334093956,1722763846531,-350.68867582,0.000109,2]
[334093957,1722763846541,-2575.04690968,0.00011,2]
[334093958,1722763846955,-847521.03209608,0.00011,2]
[334093959,1722763846966,-1058.18632061,0.00011,2]
[334093960,1722763846977,-1906.18600947,0.00011,2]
[334093961,1722763846999,-384.50318454,0.00011,2]
[334093962,1722763847018,-369.15130269,0.00011,2]
[334093967,1722763847067,-1573.58351148,0.00011,2]
[334094063,1722763998463,500.0,0.00026986,120]
[334094064,1722764602985,500.0,0.00026986,120]
[334094084,1722765011949,-501.22523145,0.00023288,30]
[334094085,1722765011980,-501.22523145,0.00023397,30]
[334094086,1722765012010,-501.22523145,0.00023479,30]
[334094087,1722765012049,-501.22523145,0.00023589,30]
[334094088,1722765012074,-501.22523145,0.00023671,30]
[334094089,1722765012099,-501.22523145,0.00023781,30]
[334094090,1722765012126,-501.22523145,0.0002389,30]
[334094091,1722765012167,-501.22523145,0.00023973,30]
[334094092,1722765012210,-501.22523145,0.00024082,30]
[334094093,1722765012236,-501.22523145,0.00024164,30]
[334094094,1722765012264,-501.22523145,0.00024274,30]
[334094095,1722765012291,-501.22523145,0.00024356,30]
[334094096,1722765012315,-501.22523145,0.00024466,30]
[334094097,1722765012342,-484.07199115,0.00024575,30]
[334094130,1722765031481,-1415.32309103,0.000109,2]
[334094132,1722765031492,-352.38700897,0.000109,2]
[334094134,1722765031503,-1937.05551355,0.00010999,2]
[334094136,1722765031513,-300.0,0.00010999,2]
[334094138,1722765031522,-8617.21446451,0.00011,2]
[334094140,1722765031618,-1200.0,0.00011,2]
[334094141,1722765031663,-1174.98131028,0.00011,2]
[334094142,1722765031674,-463.9638686,0.00011,2]
[334094143,1722765037454,-5065.1991,0.00011,2]
[334094144,1722765037487,-87302.49137333,0.00011,2]
[334094145,1722765037497,-550.0,0.00011,2]
[334094146,1722765037506,-3000.0,0.00011,2]
[334094147,1722765037516,-3118.53446434,0.00011186,2]
[334094148,1722765037525,-387.79038477,0.00011294,2]
[334094149,1722765037535,-150.0,0.00011452,2]
[334094150,1722765037545,-189.79,0.00011849,2]
[334094151,1722765037555,-420.0,0.00012087,2]
[334094152,1722765037564,-1073.58046777,0.0001254,2]
[334094153,1722765037573,-1621.96390599,0.00012613,2]
[334094154,1722765037584,-600.14164396,0.00012613,2]
[334094155,1722765037593,-722.68329662,0.00012665,2]
[334094157,1722765037603,-519.94804417,0.00012665,2]
[334094158,1722765037612,-476.4573429,0.00012666,2]
[334094159,1722765037622,-203.63587462,0.00012666,2]
[334094160,1722765037631,-379.95855132,0.00012666,2]
[334094161,1722765037642,-6169.1,0.00012681,2]
[334094162,1722765037651,-210.8550453,0.00012681,2]
[334094163,1722765037660,-159.44788772,0.00012681,2]
[334094164,1722765037670,-759.9667326,0.00012681,2]
[334094165,1722765037680,-484.69898026,0.00012681,2]
[334094166,1722765037689,-155.0,0.00012681,2]
[334094167,1722765037700,-196.9278947,0.0001269,2]
[334094168,1722765037710,-359.03203292,0.0001269,2]
[334094169,1722765037720,-164.23596765,0.0001269,2]
[334094170,1722765037730,-206.61353545,0.0001269,2]
[334094171,1722765037739,-202.68830391,0.0001269,2]
[334094172,1722765037749,-155.19850176,0.0001269,2]
[334094173,1722765037758,-155.0,0.0001269,2]
[334094174,1722765037769,-164.21268611,0.00012696,2]
[334094175,1722765037779,-155.73776893,0.00012696,2]
[334094176,1722765037791,-357.09487431,0.00012696,2]
[334094177,1722765037801,-165.34908523,0.00012749,2]
[334094178,1722765037810,-454.12693481,0.00012818,2]
[334094179,1722765037820,-546.38573207,0.00012826,2]
[334094180,1722765037829,-194.46,0.00012881,2]
[334094181,1722765037839,-600.0,0.00013,2]
[334094182,1722765037848,-1481.45,0.00013133,2]
[334094183,1722765037858,-499.99,0.00013165,2]
[334094184,1722765037867,-177.3,0.0001318,2]
[334094185,1722765037876,-4986.8755,0.00013204,2]
[334094186,1722765037886,-4920.64645878,0.00013219,2]
[334094187,1722765037895,-23900.0,0.00013227,2]
[334094188,1722765037905,-250.0,0.00013232,2]
[334094189,1722765037914,-587.0,0.00013282,2]
[334094190,1722765037923,-234.28,0.00013443,2]
[334094191,1722765037933,-154.62,0.00013606,2]
[334094192,1722765037942,-154.62,0.00013613,2]
[334094193,1722765037951,-154.62,0.0001362,2]
[334094194,1722765037960,-154.62,0.00013626,2]
[334094195,1722765037969,-154.62,0.00013633,2]
[334094196,1722765037979,-154.62,0.0001364,2]
[334094197,1722765037988,-154.62,0.00013647,2]
[334094198,1722765037997,-154.62,0.00013654,2]
[334094199,1722765038006,-154.62,0.0001366,2]
[334094201,1722765038018,-154.62,0.00013667,2]
[334094203,1722765038027,-1000.0,0.00013667,2]